fUSD/lending_fUSD_20260219
["ID","MTS","AMOUNT","RATE_DAILY","PERIOD"]
[405968181,1771473032149,-500.0,8.563e-05,2]
[405968183,1771473032159,-500.0,8.563e-05,2]
[405968185,1771473032168,-500.0,8.563e-05,2]
[405968187,1771473032177,-500.0,8.563e-05,2]
[405968189,1771473032186,-500.0,8.563e-05,2]
[405968191,1771473032196,-265.26900409,8.563e-05,2]
[405968193,1771473032206,-500.0,8.563e-05,2]
[405968195,1771473032215,-500.0,8.563e-05,2]
[405968197,1771473032225,-500.0,8.563e-05,2]
[405968199,1771473032234,-500.0,8.563e-05,2]
[405968201,1771473032243,-500.0,8.563e-05,2]
[405968202,1771473032253,-500.0,8.563e-05,2]
[405968203,1771473032263,-500.0,8.563e-05,2]
[405968204,1771473032272,-500.0,8.563e-05,2]
[405968205,1771473032282,-500.0,8.563e-05,2]
[405968206,1771473032292,-500.0,8.563e-05,2]
[405968207,1771473032301,-500.0,8.563e-05,2]
[405968208,1771473032311,-500.0,8.563e-05,2]
[405968209,1771473032320,-500.0,8.563e-05,2]
[405968210,1771473032330,-500.0,8.563e-05,2]
[405968211,1771473032339,-500.0,8.563e-05,2]
[405968212,1771473032349,-500.0,8.563e-05,2]
[405968213,1771473032358,-500.0,8.563e-05,2]
[405968214,1771473032367,-500.0,8.563e-05,2]
[405968215,1771473032377,-500.0,8.563e-05,2]
[405968216,1771473032386,-500.0,8.563e-05,2]
[405968217,1771473032396,-500.0,8.563e-05,2]
[405968218,1771473032405,-500.0,8.563e-05,2]
[405968219,1771473032415,-500.0,8.563e-05,2]
[405968220,1771473032425,-500.0,8.563e-05,2]
[405968221,1771473032435,-500.0,8.563e-05,2]
[405968222,1771473032444,-500.0,8.563e-05,2]
[405968223,1771473032454,-500.0,8.563e-05,2]
[405968224,1771473032463,-500.0,8.563e-05,2]
[405968225,1771473032473,-350.0,8.563e-05,2]
[405968226,1771473032482,-500.0,8.563e-05,2]
[405968227,1771473032492,-500.0,8.563e-05,2]
[405968228,1771473032501,-500.0,8.563e-05,2]
[405968229,1771473032511,-500.0,8.563e-05,2]
[405968230,1771473032520,-500.0,8.563e-05,2]
[405968231,1771473032530,-500.0,8.563e-05,2]
[405968232,1771473032540,-500.0,8.563e-05,2]
[405968233,1771473032549,-500.0,8.563e-05,2]
[405968234,1771473032559,-500.0,8.563e-05,2]
[405968235,1771473032568,-500.0,8.563e-05,2]
[405968236,1771473032578,-500.0,8.563e-05,2]
[405968237,1771473032587,-500.0,8.563e-05,2]
[405968238,1771473032597,-500.0,8.563e-05,2]
[405968239,1771473032607,-500.0,8.563e-05,2]
[405968240,1771473032617,-500.0,8.563e-05,2]
[405968241,1771473032626,-250.0,8.563e-05,2]
[405968242,1771473032636,-188.32168494,8.563e-05,2]
[405968243,1771473032645,-500.0,8.563e-05,2]
[405968244,1771473032655,-500.0,8.563e-05,2]
[405968245,1771473032665,-500.0,8.563e-05,2]
[405968246,1771473032674,-500.0,8.563e-05,2]
[405968247,1771473032683,-399.66540027,8.563e-05,2]
[405968248,1771473032693,-500.0,8.563e-05,2]
[405968249,1771473032702,-500.0,8.563e-05,2]
[405968250,1771473032712,-500.0,8.563e-05,2]
[405968251,1771473032721,-500.0,8.563e-05,2]
[405968252,1771473032731,-500.0,8.563e-05,2]
[405968253,1771473032741,-500.0,8.563e-05,2]
[405968254,1771473032751,-500.0,8.563e-05,2]
[405968255,1771473032760,-500.0,8.563e-05,2]
[405968256,1771473032770,-500.0,8.563e-05,2]
[405968257,1771473032780,-184.49253374,8.563e-05,2]
[405968258,1771473032789,-1097982.67308145,8.564e-05,2]
[405968259,1771473032802,-106708.35321094,8.564e-05,2]
[405968260,1771473032813,-952.0,8.564e-05,2]
[405968261,1771473037794,-361.67462856,8.563e-05,2]
[405968262,1771473037804,-213084.12537144,8.564e-05,2]
[405968305,1771473039738,-386.49005528,8.564e-05,2]
[405968306,1771473039750,-1219.4810845,8.564e-05,2]
[405968307,1771473039762,-30596.87553852,8.564e-05,2]
[405968308,1771473039794,-9941.74180896,8.564e-05,2]
[405968309,1771473039807,-976433.6715244,8.564e-05,2]
[405968310,1771473039819,-449.495,8.564e-05,2]
[405968311,1771473039852,-378.46362441,8.564e-05,2]
[405968312,1771473040117,-165795.65506836,8.564e-05,2]
[405968313,1771473040128,-66898.37856791,8.564e-05,2]
[405968319,1771473043449,-605061.48641907,8.564e-05,2]
[405968320,1771473043505,-4441.23959371,8.564e-05,2]
[405968321,1771473043519,-7278.78791481,8.564e-05,2]
[405968322,1771473043558,-6084.05108248,8.564e-05,2]
[405968323,1771473043690,-557.96001026,8.564e-05,2]
[405968336,1771473045611,-205749.0710435,8.564e-05,2]
[405968337,1771473045622,-2696.5167,8.564e-05,2]
[405968338,1771473045633,-2500.0,8.564e-05,2]
[405968339,1771473045645,-453.60394412,8.564e-05,2]
[405968340,1771473045654,-158.67183296,8.564e-05,2]
[405968341,1771473045664,-1290.68950623,8.564e-05,2]
[405968342,1771473045673,-500.0,8.643e-05,2]
[405968343,1771473045682,-500.0,8.643e-05,2]
[405968344,1771473045696,-500.0,8.643e-05,2]
[405968345,1771473045705,-500.0,8.643e-05,2]
[405968346,1771473045714,-500.0,8.643e-05,2]
[405968347,1771473045733,-383.83076671,8.643e-05,2]
[405968348,1771473045749,-500.0,8.643e-05,2]
[405968349,1771473045765,-29971.44902085,8.764e-05,2]
[405968350,1771473045781,-1678.83947915,8.764e-05,2]
[405968351,1771473045795,-150.99,8.864e-05,2]
[405968352,1771473045806,-357.48576628,8.864e-05,2]
[405968353,1771473045855,-521.50544742,8.864e-05,2]
[405968355,1771473308993,151.0,8.864e-05,3]
[405968356,1771473370681,150.0,0.00011233,120]
[405968357,1771473493437,159.0,8.864e-05,3]
[405968358,1771473499395,1245.73079948,9.005e-05,3]
[405968359,1771473499452,1245.73079949,9.005e-05,3]
[405968360,1771473512024,1242.00917884,9.005e-05,3]
[405968361,1771473512083,1242.00917885,9.005e-05,3]
[405968362,1771473606692,150.0,8.864e-05,3]
[405968364,1771473908394,151.0,8.864e-05,3]
[405968365,1771474087033,158.0,8.864e-05,3]
[405968366,1771474205771,151.0,8.864e-05,3]
[405968367,1771474231839,-155.81,7.422e-05,2]
[405968368,1771474231848,-213.0,7.422e-05,2]
[405968369,1771474231857,-44.31333169,8.077e-05,2]
[405968370,1771474231948,-111.49666831,8.077e-05,2]
[405968371,1771474231958,-156.53,8.219e-05,2]
[405968372,1771474231968,-1600.0,8.249e-05,2]
[405968373,1771474231978,-200.37,8.456e-05,2]
[405968374,1771474231988,-417.0,8.5e-05,2]
[405968375,1771474231999,-1093.95203723,8.556e-05,2]
[405968376,1771474232008,-312.04,8.565e-05,2]
[405968377,1771474232019,-150.0,8.565e-05,2]
[405968378,1771474232028,-1200.0,8.565e-05,2]
[405968379,1771474232037,-6622.7349909,8.566e-05,2]
[405968380,1771474232047,-22040.6628517,8.566e-05,2]
[405968382,1771474232057,-21662.503263,8.566e-05,2]
[405968384,1771474232067,-487.1081723,8.566e-05,2]
[405968385,1771474232075,-261.77519877,8.567e-05,2]
[405968388,1771474232085,-500.0,8.613e-05,2]
[405968389,1771474232095,-500.0,8.613e-05,2]
[405968391,1771474232105,-500.0,8.613e-05,2]
[405968394,1771474232115,-492.0,8.613e-05,2]
[405968395,1771474232124,-150.0,8.613e-05,2]
[405968397,1771474232133,-150.0,8.613e-05,2]
[405968400,1771474232144,-500.0,8.613e-05,2]
[405968401,1771474232154,-500.0,8.643e-05,2]
[405968404,1771474232163,-500.0,8.643e-05,2]
[405968406,1771474232173,-500.0,8.643e-05,2]
[405968408,1771474232183,-500.0,8.643e-05,2]
[405968409,1771474232192,-500.0,8.643e-05,2]
[405968411,1771474232201,-500.0,8.643e-05,2]
[405968413,1771474232211,-200.77170516,8.643e-05,2]
[405968415,1771474232223,-500.0,8.643e-05,2]
[405968418,1771474232233,-500.0,8.643e-05,2]
[405968419,1771474232242,-500.0,8.643e-05,2]
[405968421,1771474232251,-501.97562795,8.643e-05,2]
[405968423,1771474232261,-500.0,8.667e-05,2]
[405968425,1771474232271,-500.0,8.667e-05,2]
[405968427,1771474232280,-500.0,8.668e-05,2]
[405968429,1771474232290,-500.0,8.668e-05,2]
[405968432,1771474232299,-500.0,8.668e-05,2]
[405968434,1771474232309,-492.0,8.668e-05,2]
[405968436,1771474232318,-500.0,8.668e-05,2]
[405968438,1771474232327,-156.53,8.676e-05,2]
[405968440,1771474232336,-500.0,8.722e-05,2]
[405968442,1771474232345,-500.0,8.722e-05,2]
[405968444,1771474232353,-500.0,8.723e-05,2]
[405968446,1771474232363,-500.0,8.723e-05,2]
[405968448,1771474232371,-500.0,8.723e-05,2]
[405968450,1771474232380,-492.0,8.723e-05,2]
[405968451,1771474232650,-500.0,8.723e-05,2]
[405968452,1771474232659,-155.81,8.732e-05,2]
[405968453,1771474232669,-500.0,8.748e-05,2]
[405968454,1771474232678,-239.0,8.748e-05,2]
[405968455,1771474232687,-500.0,8.777e-05,2]
[405968456,1771474232696,-500.0,8.777e-05,2]
[405968457,1771474232705,-500.0,8.777e-05,2]
[405968458,1771474232714,-500.0,8.777e-05,2]
[405968459,1771474232724,-500.0,8.777e-05,2]
[405968460,1771474232733,-500.0,8.777e-05,2]
[405968461,1771474232743,-492.0,8.777e-05,2]
[405968462,1771474232752,-500.0,8.777e-05,2]
[405968463,1771474232761,-500.0,8.831e-05,2]
[405968464,1771474232770,-500.0,8.831e-05,2]
[405968465,1771474232779,-500.0,8.832e-05,2]
[405968466,1771474232788,-500.0,8.832e-05,2]
[405968467,1771474232797,-500.0,8.832e-05,2]
[405968468,1771474232806,-292.39805604,8.832e-05,2]
[405968469,1771474232815,-492.0,8.832e-05,2]
[405968470,1771474232824,-500.0,8.832e-05,2]
[405968471,1771474232833,-637.0,8.84e-05,2]
[405968472,1771474232843,-500.0,8.886e-05,2]
[405968473,1771474232852,-593.64462139,8.886e-05,2]
[405968474,1771474232860,-500.0,8.887e-05,2]
[405968475,1771474232869,-500.0,8.887e-05,2]
[405968476,1771474232878,-500.0,8.887e-05,2]
[405968477,1771474232887,-492.0,8.887e-05,2]
[405968478,1771474232897,-500.0,8.887e-05,2]
[405968479,1771474232906,-500.0,8.941e-05,2]
[405968480,1771474232915,-500.0,8.941e-05,2]
[405968481,1771474232925,-500.0,8.942e-05,2]
[405968482,1771474232934,-500.0,8.942e-05,2]
[405968483,1771474232943,-492.0,8.942e-05,2]
[405968484,1771474232953,-500.0,8.942e-05,2]
[405968485,1771474232962,-958.0,8.986e-05,2]
[405968486,1771474232971,-500.0,8.996e-05,2]
[405968487,1771474232981,-500.0,8.996e-05,2]
[405968488,1771474232990,-500.0,8.997e-05,2]
[405968489,1771474233000,-500.0,8.997e-05,2]
[405968490,1771474233009,-492.0,8.997e-05,2]
[405968491,1771474233018,-500.0,8.997e-05,2]
[405968492,1771474233028,-5000.0,9e-05,2]
[405968493,1771474233037,-159.30004279,9.005e-05,2]
[405968494,1771474233046,-500.0,9.022e-05,2]
[405968495,1771474233056,-1195.0,9.037e-05,2]
[405968496,1771474233066,-500.0,9.051e-05,2]
[405968497,1771474233079,-500.0,9.051e-05,2]
[405968498,1771474233089,-452.0,9.051e-05,2]
[405968499,1771474233099,-500.0,9.051e-05,2]
[405968500,1771474233108,-500.0,9.051e-05,2]
[405968501,1771474233118,-500.0,9.051e-05,2]
[405968502,1771474233128,-500.0,9.051e-05,2]
[405968503,1771474233137,-500.0,9.051e-05,2]
[405968504,1771474233146,-500.0,9.051e-05,2]
[405968505,1771474233155,-336.71255009,9.051e-05,2]
[405968506,1771474233165,-492.0,9.051e-05,2]
[405968507,1771474233174,-500.0,9.051e-05,2]
[405968508,1771474233183,-500.0,9.105e-05,2]
[405968509,1771474233192,-500.0,9.106e-05,2]
[405968510,1771474233202,-452.0,9.106e-05,2]
[405968511,1771474233212,-500.0,9.106e-05,2]
[405968512,1771474233224,-500.0,9.106e-05,2]
[405968513,1771474233233,-500.0,9.106e-05,2]
[405968514,1771474233242,-500.0,9.106e-05,2]
[405968515,1771474233252,-536.30108782,9.106e-05,2]
[405968516,1771474233261,-5733.33091259,9.106e-05,2]
[405968517,1771474233271,-500.0,9.106e-05,2]
[405968518,1771474233280,-492.0,9.106e-05,2]
[405968519,1771474233290,-500.0,9.106e-05,2]
[405968520,1771474233299,-156.53,9.132e-05,2]
[405968521,1771474233309,-500.0,9.16e-05,2]
[405968522,1771474233317,-500.0,9.161e-05,2]
[405968523,1771474233327,-452.0,9.161e-05,2]
[405968524,1771474233336,-500.0,9.161e-05,2]
[405968525,1771474233345,-500.0,9.161e-05,2]
[405968526,1771474233355,-500.0,9.161e-05,2]
[405968527,1771474233364,-500.0,9.161e-05,2]
[405968528,1771474233373,-500.0,9.161e-05,2]
[405968529,1771474233382,-492.0,9.161e-05,2]
[405968530,1771474233392,-500.0,9.161e-05,2]
[405968531,1771474233401,-587.12625063,9.191e-05,2]
[405968532,1771474233410,-1000.0,9.191e-05,2]
[405968533,1771474233419,-1000.0,9.191e-05,2]
[405968534,1771474233428,-1000.0,9.191e-05,2]
[405968535,1771474233437,-500.81315308,9.191e-05,2]
[405968536,1771474233446,-1000.0,9.191e-05,2]
[405968537,1771474233455,-1000.0,9.191e-05,2]
[405968538,1771474233464,-1000.0,9.191e-05,2]
[405968539,1771474233474,-1000.0,9.191e-05,2]
[405968540,1771474233483,-500.0,9.215e-05,2]
[405968541,1771474233492,-500.0,9.215e-05,2]
[405968542,1771474233501,-452.0,9.215e-05,2]
[405968543,1771474233511,-500.0,9.215e-05,2]
[405968544,1771474233520,-206.20559036,9.215e-05,2]
[405968545,1771474233529,-500.0,9.215e-05,2]
[405968546,1771474233539,-500.0,9.215e-05,2]
[405968547,1771474233548,-500.0,9.216e-05,2]
[405968548,1771474233557,-492.0,9.216e-05,2]
[405968549,1771474233567,-598.07347656,9.216e-05,2]
[405968550,1771474233576,-500.0,9.27e-05,2]
[405968551,1771474233585,-500.0,9.27e-05,2]
[405968552,1771474233594,-452.0,9.27e-05,2]
[405968553,1771474233603,-500.0,9.27e-05,2]
[405968554,1771474233612,-500.0,9.27e-05,2]
[405968555,1771474233622,-500.0,9.27e-05,2]
[405968556,1771474233631,-500.0,9.271e-05,2]
[405968557,1771474233643,-492.0,9.271e-05,2]
[405968558,1771474233652,-1600.0,9.28e-05,2]
[405968559,1771474233662,-184.64602598,9.291e-05,2]
[405968560,1771474233672,-193.4694086,9.296e-05,2]
[405968561,1771474233683,-390.0,9.314e-05,2]
[405968562,1771474233693,-500.0,9.325e-05,2]
[405968563,1771474233703,-500.0,9.325e-05,2]
[405968564,1771474233714,-452.0,9.325e-05,2]
[405968565,1771474233723,-348.0,9.325e-05,2]
[405968566,1771474233732,-500.0,9.325e-05,2]
[405968567,1771474233741,-500.0,9.325e-05,2]
[405968568,1771474233752,-500.0,9.325e-05,2]
[405968569,1771474233761,-492.0,9.325e-05,2]
[405968570,1771474233770,-500.0,9.379e-05,2]
[405968571,1771474233779,-500.0,9.38e-05,2]
[405968572,1771474233789,-452.0,9.38e-05,2]
[405968573,1771474233798,-500.0,9.38e-05,2]
[405968574,1771474233807,-500.0,9.38e-05,2]
[405968575,1771474233816,-177.12713526,9.38e-05,2]
[405968576,1771474233825,-492.0,9.38e-05,2]
[405968577,1771474233838,-255.0,9.422e-05,2]
[405968578,1771474233847,-500.0,9.434e-05,2]
[405968579,1771474233856,-500.0,9.435e-05,2]
[405968580,1771474233865,-452.0,9.435e-05,2]
[405968581,1771474233874,-500.0,9.435e-05,2]
[405968582,1771474233883,-500.0,9.435e-05,2]
[405968583,1771474233892,-492.0,9.435e-05,2]
[405968584,1771474233901,-543.53612921,9.489e-05,2]
[405968585,1771474233910,-500.0,9.489e-05,2]
[405968586,1771474233919,-452.0,9.489e-05,2]
[405968587,1771474233929,-500.0,9.489e-05,2]
[405968588,1771474233938,-500.0,9.489e-05,2]
[405968589,1771474233947,-492.0,9.49e-05,2]
[405968590,1771474233956,-500.0,9.544e-05,2]
[405968591,1771474233966,-452.0,9.544e-05,2]
[405968592,1771474233975,-500.0,9.544e-05,2]
[405968593,1771474233984,-500.0,9.544e-05,2]
[405968594,1771474233994,-492.0,9.545e-05,2]
[405968595,1771474234003,-318.12778806,9.583e-05,2]
[405968596,1771474234012,-156.53,9.589e-05,2]
[405968597,1771474234021,-509.55105984,9.599e-05,2]
[405968598,1771474234033,-452.0,9.599e-05,2]
[405968599,1771474234043,-500.0,9.599e-05,2]
[405968600,1771474234052,-500.0,9.599e-05,2]
[405968601,1771474234062,-492.0,9.599e-05,2]
[405968602,1771474234072,-150836.66813461,9.639e-05,2]
[405968603,1771474234331,-58541.33866539,9.639e-05,2]
[405968604,1771474234349,-4917.9366318,9.652e-05,2]
[405968605,1771474234360,-4833.5578222,9.652e-05,2]
[405968606,1771474234370,-452.0,9.654e-05,2]
[405968607,1771474234379,-500.0,9.654e-05,2]
[405968608,1771474234388,-500.0,9.654e-05,2]
[405968609,1771474234397,-492.0,9.654e-05,2]
[405968610,1771474234406,-6622.7349909,9.688e-05,2]
[405968611,1771474234417,-452.0,9.709e-05,2]
[405968612,1771474234429,-500.0,9.709e-05,2]
[405968613,1771474234439,-500.0,9.709e-05,2]
[405968614,1771474234450,-492.0,9.709e-05,2]
[405968615,1771474234460,-151.0,9.736e-05,2]
[405968616,1771474234471,-268.44405922,9.738e-05,2]
[405968617,1771474234485,-1231.55594078,9.738e-05,2]
[405968618,1771474234495,-1500.0,9.738e-05,2]
[405968619,1771474234504,-1004.59441236,9.738e-05,2]
[405968620,1771474234515,-1500.0,9.738e-05,2]
[405968621,1771474234524,-1500.0,9.738e-05,2]
[405968622,1771474234535,-1002.28837748,9.738e-05,2]
[405968623,1771474234547,-1500.0,9.738e-05,2]
[405968624,1771474234558,-452.0,9.763e-05,2]
[405968625,1771474234569,-281.10829242,9.763e-05,2]
[405968626,1771474234581,-500.0,9.763e-05,2]
[405968627,1771474234591,-492.0,9.764e-05,2]
[405968628,1771474234603,-452.0,9.818e-05,2]
[405968629,1771474234615,-500.0,9.818e-05,2]
[405968630,1771474234626,-492.0,9.818e-05,2]
[405968631,1771474234638,-452.0,9.873e-05,2]
[405968632,1771474234648,-500.0,9.873e-05,2]
[405968633,1771474234658,-509.44978883,9.873e-05,2]
[405968634,1771474234667,-1097.3399882,9.894e-05,2]
[405968635,1771474234678,-1078.5125309,9.894e-05,2]
[405968636,1771474234688,-150.0,9.906e-05,12]
[405968637,1771474234700,-218.0,9.906e-05,12]
[405968638,1771474234711,-452.0,9.928e-05,2]
[405968639,1771474234720,-500.0,9.928e-05,2]
[405968640,1771474234731,-452.0,9.983e-05,2]
[405968641,1771474234743,-500.0,9.983e-05,2]
[405968642,1771474234753,-434.05414231,0.0001,2]
[405968643,1771474234762,-236.91848556,0.0001,2]
[405968644,1771474234772,-151.0,0.0001,2]
[405968645,1771474234781,-151.0,0.0001,2]
[405968646,1771474234790,-151.0,0.0001,2]
[405968647,1771474234799,-151.0,0.0001,2]
[405968648,1771474234808,-151.0,0.0001,2]
[405968649,1771474234817,-151.0,0.0001,2]
[405968650,1771474234826,-151.0,0.0001,2]
[405968651,1771474234836,-151.0,0.0001,2]
[405968652,1771474234846,-151.0,0.0001,2]
[405968653,1771474234856,-151.0,0.0001,2]
[405968654,1771474234867,-200.0,0.0001,2]
[405968655,1771474234876,-151.0,0.0001,2]
[405968656,1771474234886,-151.0,0.0001,2]
[405968657,1771474234899,-151.0,0.0001,2]
[405968658,1771474234908,-151.0,0.0001,2]
[405968659,1771474234917,-151.0,0.0001,2]
[405968660,1771474234926,-151.0,0.0001,2]
[405968661,1771474234937,-151.0,0.0001,2]
[405968662,1771474234947,-151.0,0.0001,2]
[405968663,1771474234956,-151.0,0.0001,2]
[405968664,1771474234965,-151.0,0.0001,2]
[405968665,1771474234974,-151.0,0.0001,2]
[405968666,1771474234984,-503.49339626,0.0001,2]
[405968667,1771474234993,-500.0,0.0001,2]
[405968668,1771474235003,-500.0,0.0001,2]
[405968669,1771474235013,-500.0,0.0001,2]
[405968670,1771474235023,-500.0,0.0001,2]
[405968671,1771474235032,-500.0,0.0001,2]
[405968672,1771474235041,-500.0,0.0001,2]
[405968673,1771474235050,-500.0,0.0001,2]
[405968674,1771474235060,-500.0,0.0001,2]
[405968675,1771474235069,-500.0,0.0001,2]
[405968676,1771474235079,-500.0,0.0001,2]
[405968677,1771474235088,-500.0,0.0001,2]
[405968678,1771474235098,-151.0,0.0001,2]
[405968679,1771474235107,-151.0,0.0001,2]
[405968680,1771474235118,-151.0,0.0001,2]
[405968681,1771474235127,-151.0,0.0001,2]
[405968682,1771474235136,-151.0,0.0001,2]
[405968683,1771474235147,-151.0,0.0001,2]
[405968684,1771474235157,-151.0,0.0001,2]
[405968685,1771474235166,-151.0,0.0001,2]
[405968686,1771474235175,-151.0,0.0001,2]
[405968687,1771474235186,-151.0,0.0001,2]
[405968688,1771474235196,-151.0,0.0001,2]
[405968689,1771474235206,-500.0,0.0001,2]
[405968690,1771474235217,-500.0,0.0001,2]
[405968691,1771474235226,-500.0,0.0001,2]
[405968692,1771474235235,-500.0,0.0001,2]
[405968693,1771474235244,-500.0,0.0001,2]
[405968694,1771474235254,-500.0,0.0001,2]
[405968695,1771474235263,-500.0,0.0001,2]
[405968696,1771474235272,-500.0,0.0001,2]
[405968697,1771474235281,-500.0,0.0001,2]
[405968698,1771474235293,-500.0,0.0001,2]
[405968699,1771474235301,-500.0,0.0001,2]
[405968700,1771474235310,-201.42323082,0.0001,2]
[405968701,1771474235321,-452.0,0.00010037,2]
[405968702,1771474235331,-213.613494,0.00010037,2]
[405968703,1771474235340,-156.53,0.00010046,2]
[405968704,1771474235350,-452.0,0.00010092,2]
[405968705,1771474235360,-452.0,0.00010147,2]
[405968706,1771474235371,-452.0,0.00010202,2]
[405968707,1771474235383,-452.0,0.00010256,2]
[405968708,1771474235394,-2000.0,0.00010286,2]
[405968709,1771474235403,-2000.0,0.00010286,2]
[405968710,1771474235414,-2000.0,0.00010286,2]
[405968711,1771474235423,-2000.0,0.00010286,2]
[405968712,1771474235434,-2000.0,0.00010286,2]
[405968713,1771474235445,-1600.0,0.00010311,2]
[405968714,1771474235455,-474.79717779,0.00010311,2]
[405968715,1771474235466,-184.0,0.00010364,2]
[405968716,1771474235476,-299.99,0.00010475,2]
[405968717,1771474235487,-17869.0872472,0.00010475,2]
[405968718,1771474237880,-3378.65,8.138e-05,2]
[405968719,1771474237891,-1000.0,8.138e-05,2]
[405968720,1771474237935,-576.55739814,8.138e-05,2]
[405968721,1771474238095,-2314.55260186,8.138e-05,2]
[405968722,1771474238105,-203.07298763,0.00010475,2]
[405968723,1771474238115,-164.29284216,0.00010475,2]
[405968724,1771474238124,-2680.45875037,0.00010475,2]
[405968725,1771474238135,-785.31745273,0.00010475,2]
[405968726,1771474238146,-987.9148615,0.00010475,2]
[405968727,1771474239996,-174.06256082,0.00010475,2]
[405968728,1771474240006,-4702.48095898,0.00010475,2]
[405968729,1771474240019,-173726.04072922,0.00010475,2]
[405968730,1771474240029,-9999.99,0.00010475,2]
[405968731,1771474240039,-4242.75,0.00010475,2]
[405968732,1771474240049,-999.99,0.00010475,2]
[405968733,1771474240059,-150.99,0.00010475,2]
[405968734,1771474240069,-9999.99,0.00010475,2]
[405968735,1771474240078,-2773.27,0.00010475,2]
[405968736,1771474240088,-648.0,0.000105,5]
[405968737,1771474240098,-156.53,0.00010502,2]
[405968738,1771474240109,-201.70363025,0.00010548,2]
[405968739,1771474240120,-6622.7349909,0.0001081,2]
[405968740,1771474240130,-2500.0,0.00010834,2]
[405968741,1771474240139,-2500.0,0.00010834,2]
[405968742,1771474240149,-2500.0,0.00010834,2]
[405968743,1771474240165,-2500.0,0.00010834,2]
[405968744,1771474240186,-2601.16676127,0.00010834,2]
[405968745,1771474240202,-482.1360182,0.000109,2]
[405968746,1771474240216,-482.13601817,0.000109,2]
[405968747,1771474240235,-166.66,0.00010959,2]
[405968748,1771474240256,-150.0,0.00010959,2]
[405968749,1771474240276,-156.53,0.00010959,2]
[405968750,1771474240296,-5174.6402618,0.00011099,2]
[405968751,1771474240307,-5174.64026179,0.00011099,2]
[405968752,1771474240320,-9347.34855401,0.00011099,2]
[405968753,1771474240336,-9347.34855396,0.00011099,2]
[405968754,1771474240348,-150.0,0.0001111,7]
[405968755,1771474240362,-166.66,0.00011137,2]
[405968756,1771474240374,-438.29,0.00011147,2]
[405968757,1771474240386,-10494.04,0.00011233,2]
[405968758,1771474240400,-150.0,0.00011233,2]
[405968759,1771474240412,-2000.0,0.00011233,2]
[405968760,1771474240425,-200.0,0.00011233,2]
[405968761,1771474240437,-200.0,0.00011233,2]
[405968762,1771474240448,-200.0,0.00011233,2]
[405968763,1771474240459,-166.66,0.00011315,2]
[405968765,1771474240472,-1600.0,0.00011342,2]
[405968766,1771474240487,-1296.79774788,0.00011345,2]
[405968767,1771474240501,-200.0,0.00011345,2]
[405968768,1771474240513,-200.0,0.00011345,2]
[405968769,1771474240526,-200.0,0.00011345,2]
[405968770,1771474240538,-9347.34855396,0.00011358,2]
[405968771,1771474240550,-1610.02269176,0.00011382,2]
[405968772,1771474240561,-3000.0,0.00011382,2]
[405968773,1771474240572,-3000.0,0.00011382,2]
[405968774,1771474240583,-3000.0,0.00011382,2]
[405968775,1771474240592,-5174.64026179,0.00011407,2]
[405968776,1771474240604,-156.53,0.00011416,2]
[405968777,1771474240616,-200.0,0.00011459,2]
[405968778,1771474240625,-200.0,0.00011459,2]
[405968779,1771474240635,-200.0,0.00011459,2]
[405968780,1771474240646,-200.37,0.00011485,2]
[405968781,1771474240654,-166.66,0.00011492,2]
[405968782,1771474240664,-200.0,0.00011573,2]
[405968783,1771474240674,-200.0,0.00011573,2]
[405968784,1771474240685,-200.0,0.00011573,2]
[405968785,1771474240694,-151.0,0.0001161,2]
[405968786,1771474240705,-166.66,0.0001167,2]
[405968787,1771474240715,-578.20924308,0.00011684,2]